[Event "Gibraltar Masters 18th"]
[Site "Gibraltar"]
[Date "2020.01.24"]
[Round "4.34"]
[White "Sanal, Vahap"]
[Black "Gschnitzer, Adrian"]
[Result "1-0"]
[ECO "B19"]
[WhiteElo "2569"]
[BlackElo "2388"]
[PlyCount "77"]
[EventDate "2020.01.21"]
[EventType "swiss"]
[EventRounds "10"]
[EventCountry "GGB"]
[SourceTitle "BritBase"]
[Source "John Saunders"]
[SourceDate "2021.06.05"]
[SourceVersion "1"]
[SourceVersionDate "2021.06.05"]
[SourceQuality "1"]
[TimeControl "40/100:0"]
[WhiteClock "0:50:08"]
[BlackClock "0:08:55"]

1. e4 {[%emt 0:00:00]} c6 {[%emt 0:00:00]} 2. d4 {[%emt 0:00:00]} d5 {[%emt 0:
00:00]} 3. Nc3 {[%emt 0:00:00]} dxe4 {[%emt 0:00:00]} 4. Nxe4 {[%emt 0:00:00]}
Bf5 {[%emt 0:00:00]} 5. Ng3 {[%emt 0:00:00]} Bg6 {[%emt 0:00:00]} 6. h4 {
[%emt 0:00:00]} h6 {[%emt 0:00:00]} 7. Nf3 {[%emt 0:00:00]} Nd7 {[%emt 0:00:00]
} 8. h5 {[%emt 0:00:00]} Bh7 {[%emt 0:00:00]} 9. Bd3 {[%emt 0:00:00]} Bxd3 {
[%emt 0:00:00]} 10. Qxd3 {[%emt 0:00:00]} e6 {[%emt 0:00:00]} 11. Bd2 {[%emt 0:
00:00]} Ngf6 {[%emt 0:00:00]} 12. O-O-O {[%emt 0:00:00]} Be7 {[%emt 0:00:00]}
13. Ne4 {[%emt 0:00:00]} Nxe4 {[%emt 0:00:00]} 14. Qxe4 {[%emt 0:00:00]} Nf6 {
[%emt 0:00:00]} 15. Qe2 {[%emt 0:00:00]} Qd5 {[%emt 0:00:00]} 16. c4 {[%emt 0:
00:00]} Qe4 {[%emt 0:00:00]} 17. Qxe4 {[%emt 0:00:00]} Nxe4 {[%emt 0:00:00]}
18. Be3 {[%emt 0:00:00]} f5 {[%emt 0:00:00]} 19. Kc2 {[%emt 0:00:00]} f4 {
[%emt 0:00:00]} 20. Kd3 {[%emt 0:00:00]} fxe3 {[%emt 0:00:00]} 21. Kxe4 {
[%emt 0:00:00]} exf2 {[%emt 0:00:00]} 22. Rhf1 {[%emt 0:00:00]} O-O {[%emt 0:
00:00]} 23. Rxf2 {[%emt 0:00:00]} Rf5 {[%emt 0:00:00]} 24. Rh1 {[%emt 0:00:00]}
Rd8 {[%emt 0:00:00]} 25. Re2 {[%emt 0:00:00]} Bg5 {[%emt 0:00:00]} 26. Kd3 {
[%emt 0:00:00]} c5 {[%emt 0:00:00]} 27. Rxe6 {[%emt 0:00:00]} cxd4 {[%emt 0:00:
00]} 28. Rhe1 {[%emt 0:00:00]} Be3 {[%emt 0:00:00]} 29. Re7 {[%emt 0:00:00]}
Ra5 {[%emt 0:00:00]} 30. Rxb7 {[%emt 0:00:00]} Rxa2 {[%emt 0:00:00]} 31. Ne5 {
[%emt 0:00:00]} Ra6 {[%emt 0:00:00]} 32. Rf1 {[%emt 0:00:00]} Re6 {[%emt 0:00:
00]} 33. Ng4 {[%emt 0:00:00]} Bg5 {[%emt 0:00:00]} 34. Rff7 {[%emt 0:00:00]}
Re1 {[%emt 0:00:00]} 35. Rxg7+ {[%emt 0:00:00]} Kf8 {[%emt 0:00:00]} 36. Rbf7+
{[%emt 0:00:00]} Ke8 {[%emt 0:00:00]} 37. Rxa7 {[%emt 0:00:00]} Kf8 {[%emt 0:
00:00]} 38. Raf7+ {[%emt 0:00:00]} Ke8 {[%emt 0:00:00]} 39. Nf6+ {[%emt 0:00:
00]} 1-0

[Event "Gibraltar Masters 18th"]
[Site "Gibraltar"]
[Date "2020.01.24"]
[Round "4.35"]
[White "Panjwani, Raja"]
[Black "Yuffa, Daniil"]
[Result "0-1"]
[ECO "E92"]
[WhiteElo "2444"]
[BlackElo "2566"]
[PlyCount "76"]
[EventDate "2020.01.21"]
[EventType "swiss"]
[EventRounds "10"]
[EventCountry "GGB"]
[SourceTitle "BritBase"]
[Source "John Saunders"]
[SourceDate "2021.06.05"]
[SourceVersion "1"]
[SourceVersionDate "2021.06.05"]
[SourceQuality "1"]
[TimeControl "40/100:0"]
[WhiteClock "0:10:40"]
[BlackClock "0:28:02"]

1. Nf3 {[%emt 0:00:00]} d6 {[%emt 0:00:00]} 2. d4 {[%emt 0:00:00]} Nf6 {
[%emt 0:00:00]} 3. c4 {[%emt 0:00:00]} g6 {[%emt 0:00:00]} 4. Nc3 {[%emt 0:00:
00]} Bg7 {[%emt 0:00:00]} 5. e4 {[%emt 0:00:00]} O-O {[%emt 0:00:00]} 6. Be2 {
[%emt 0:00:00]} e5 {[%emt 0:00:00]} 7. d5 {[%emt 0:00:00]} a5 {[%emt 0:00:00]}
8. Be3 {[%emt 0:00:00]} Ng4 {[%emt 0:00:00]} 9. Bg5 {[%emt 0:00:00]} f6 {
[%emt 0:00:00]} 10. Bh4 {[%emt 0:00:00]} Na6 {[%emt 0:00:00]} 11. Nd2 {[%emt 0:
00:00]} h5 {[%emt 0:00:00]} 12. h3 {[%emt 0:00:00]} Nh6 {[%emt 0:00:00]} 13. f3
{[%emt 0:00:00]} Bd7 {[%emt 0:00:00]} 14. Bf2 {[%emt 0:00:00]} f5 {[%emt 0:00:
00]} 15. h4 {[%emt 0:00:00]} Nc5 {[%emt 0:00:00]} 16. Qc2 {[%emt 0:00:00]} a4 {
[%emt 0:00:00]} 17. O-O-O {[%emt 0:00:00]} fxe4 {[%emt 0:00:00]} 18. Ndxe4 {
[%emt 0:00:00]} a3 {[%emt 0:00:00]} 19. b3 {[%emt 0:00:00]} Na6 {[%emt 0:00:00]
} 20. Kb1 {[%emt 0:00:00]} Nf5 {[%emt 0:00:00]} 21. Nb5 {[%emt 0:00:00]} Nc5 {
[%emt 0:00:00]} 22. Bd3 {[%emt 0:00:00]} Nxd3 {[%emt 0:00:00]} 23. Qxd3 {
[%emt 0:00:00]} Ra5 {[%emt 0:00:00]} 24. Qd2 {[%emt 0:00:00]} b6 {[%emt 0:00:
00]} 25. Nbc3 {[%emt 0:00:00]} Qe7 {[%emt 0:00:00]} 26. b4 {[%emt 0:00:00]}
Raa8 {[%emt 0:00:00]} 27. b5 {[%emt 0:00:00]} Nd4 {[%emt 0:00:00]} 28. Qd3 {
[%emt 0:00:00]} Bf5 {[%emt 0:00:00]} 29. Ka1 {[%emt 0:00:00]} Rf7 {[%emt 0:00:
00]} 30. Rde1 {[%emt 0:00:00]} Qf8 {[%emt 0:00:00]} 31. Nb1 {[%emt 0:00:00]}
Bxe4 {[%emt 0:00:00]} 32. Rxe4 {[%emt 0:00:00]} Rxf3 {[%emt 0:00:00]} 33. gxf3
{[%emt 0:00:00]} Qxf3 {[%emt 0:00:00]} 34. Rxd4 {[%emt 0:00:00]} Qxf2 {[%emt 0:
00:00]} 35. Qd2 {[%emt 0:00:00]} Qxd4+ {[%emt 0:00:00]} 36. Qxd4 {[%emt 0:00:
00]} exd4 {[%emt 0:00:00]} 37. Nd2 {[%emt 0:00:00]} d3+ {[%emt 0:00:00]} 38.
Kb1 {[%emt 0:00:00]} Re8 {[%emt 0:00:00]} 0-1

[Event "Gibraltar Masters 18th"]
[Site "Gibraltar"]
[Date "2020.01.24"]
[Round "4.36"]
[White "Gukesh, Dommaraju"]
[Black "Lombaers, Peter"]
[Result "1-0"]
[ECO "B33"]
[WhiteElo "2542"]
[BlackElo "2383"]
[PlyCount "77"]
[EventDate "2020.01.21"]
[EventType "swiss"]
[EventRounds "10"]
[EventCountry "GGB"]
[SourceTitle "BritBase"]
[Source "John Saunders"]
[SourceDate "2021.06.05"]
[SourceVersion "1"]
[SourceVersionDate "2021.06.05"]
[SourceQuality "1"]
[TimeControl "40/100:0"]
[WhiteClock "0:06:03"]
[BlackClock "0:01:03"]

1. e4 {[%emt 0:00:00]} c5 {[%emt 0:00:00]} 2. Nf3 {[%emt 0:00:00]} Nc6 {
[%emt 0:00:00]} 3. d4 {[%emt 0:00:00]} cxd4 {[%emt 0:00:00]} 4. Nxd4 {[%emt 0:
00:00]} Nf6 {[%emt 0:00:00]} 5. Nc3 {[%emt 0:00:00]} e5 {[%emt 0:00:00]} 6.
Ndb5 {[%emt 0:00:00]} d6 {[%emt 0:00:00]} 7. Nd5 {[%emt 0:00:00]} Nxd5 {
[%emt 0:00:00]} 8. exd5 {[%emt 0:00:00]} Nb8 {[%emt 0:00:00]} 9. a4 {[%emt 0:
00:00]} Be7 {[%emt 0:00:00]} 10. Be2 {[%emt 0:00:00]} Nd7 {[%emt 0:00:00]} 11.
O-O {[%emt 0:00:00]} O-O {[%emt 0:00:00]} 12. Bd2 {[%emt 0:00:00]} a6 {[%emt 0:
00:00]} 13. Na3 {[%emt 0:00:00]} a5 {[%emt 0:00:00]} 14. Nb5 {[%emt 0:00:00]}
f5 {[%emt 0:00:00]} 15. f4 {[%emt 0:00:00]} Bf6 {[%emt 0:00:00]} 16. Kh1 {
[%emt 0:00:00]} Nc5 {[%emt 0:00:00]} 17. c3 {[%emt 0:00:00]} b6 {[%emt 0:00:00]
} 18. Be3 {[%emt 0:00:00]} g6 {[%emt 0:00:00]} 19. Na3 {[%emt 0:00:00]} exf4 {
[%emt 0:00:00]} 20. Bxf4 {[%emt 0:00:00]} g5 {[%emt 0:00:00]} 21. Be3 {[%emt 0:
00:00]} Ra7 {[%emt 0:00:00]} 22. Nc4 {[%emt 0:00:00]} Rg7 {[%emt 0:00:00]} 23.
b4 {[%emt 0:00:00]} Ne4 {[%emt 0:00:00]} 24. Bxb6 {[%emt 0:00:00]} Qe7 {
[%emt 0:00:00]} 25. Bd3 {[%emt 0:00:00]} Bxc3 {[%emt 0:00:00]} 26. Nxa5 {
[%emt 0:00:00]} g4 {[%emt 0:00:00]} 27. Rc1 {[%emt 0:00:00]} Qh4 {[%emt 0:00:
00]} 28. Bxe4 {[%emt 0:00:00]} g3 {[%emt 0:00:00]} 29. h3 {[%emt 0:00:00]} fxe4
{[%emt 0:00:00]} 30. Rxf8+ {[%emt 0:00:00]} Kxf8 {[%emt 0:00:00]} 31. Kg1 {
[%emt 0:00:00]} Bg4 {[%emt 0:00:00]} 32. Qc2 {[%emt 0:00:00]} Bf6 {[%emt 0:00:
00]} 33. Qxe4 {[%emt 0:00:00]} Qh6 {[%emt 0:00:00]} 34. Be3 {[%emt 0:00:00]}
Qh5 {[%emt 0:00:00]} 35. Rf1 {[%emt 0:00:00]} Rg6 {[%emt 0:00:00]} 36. Bd4 {
[%emt 0:00:00]} Bxh3 {[%emt 0:00:47]} 37. Bxf6 {[%emt 0:00:00]} Bf5 {[%emt 0:
00:18]} 38. Qe7+ {[%emt 0:00:00]} Kg8 {[%emt 0:00:00]} 39. Qe8# {[%emt 0:00:00]
} 1-0

[Event "Gibraltar Masters 18th"]
[Site "Gibraltar"]
[Date "2020.01.24"]
[Round "4.37"]
[White "Merario Alarcon, Andres"]
[Black "Muzychuk, Anna"]
[Result "1/2-1/2"]
[ECO "D14"]
[WhiteElo "2412"]
[BlackElo "2539"]
[PlyCount "72"]
[EventDate "2020.01.21"]
[EventType "swiss"]
[EventRounds "10"]
[EventCountry "GGB"]
[SourceTitle "BritBase"]
[Source "John Saunders"]
[SourceDate "2021.06.05"]
[SourceVersion "1"]
[SourceVersionDate "2021.06.05"]
[SourceQuality "1"]
[TimeControl "40/100:0"]
[WhiteClock "0:29:09"]
[BlackClock "0:19:59"]

1. d4 {[%emt 0:00:00]} d5 {[%emt 0:00:00]} 2. c4 {[%emt 0:00:00]} c6 {[%emt 0:
00:00]} 3. cxd5 {[%emt 0:00:00]} cxd5 {[%emt 0:00:00]} 4. Bf4 {[%emt 0:00:00]}
Nc6 {[%emt 0:00:00]} 5. e3 {[%emt 0:00:00]} Nf6 {[%emt 0:00:00]} 6. Nc3 {
[%emt 0:00:00]} Bf5 {[%emt 0:00:00]} 7. Nf3 {[%emt 0:00:00]} e6 {[%emt 0:00:00]
} 8. Be2 {[%emt 0:00:00]} Bd6 {[%emt 0:00:00]} 9. Ne5 {[%emt 0:00:00]} Bxe5 {
[%emt 0:00:00]} 10. Bxe5 {[%emt 0:00:00]} Nxe5 {[%emt 0:00:00]} 11. dxe5 {
[%emt 0:00:00]} Nd7 {[%emt 0:00:00]} 12. Qd4 {[%emt 0:00:00]} a6 {[%emt 0:00:
00]} 13. O-O {[%emt 0:00:00]} Qb6 {[%emt 0:00:00]} 14. g4 {[%emt 0:00:00]} Qxd4
{[%emt 0:00:00]} 15. exd4 {[%emt 0:00:00]} Bg6 {[%emt 0:00:00]} 16. f4 {
[%emt 0:00:00]} f5 {[%emt 0:00:00]} 17. h4 {[%emt 0:00:00]} h5 {[%emt 0:00:00]}
18. g5 {[%emt 0:00:00]} Ke7 {[%emt 0:00:00]} 19. Rfc1 {[%emt 0:00:00]} Rhc8 {
[%emt 0:00:00]} 20. Na4 {[%emt 0:00:00]} Be8 {[%emt 0:00:00]} 21. Kf2 {[%emt 0:
00:00]} b5 {[%emt 0:00:00]} 22. Nc5 {[%emt 0:00:00]} Nxc5 {[%emt 0:00:00]} 23.
Rxc5 {[%emt 0:00:00]} Rxc5 {[%emt 0:00:00]} 24. dxc5 {[%emt 0:00:00]} g6 {
[%emt 0:00:00]} 25. Ke3 {[%emt 0:00:00]} a5 {[%emt 0:00:00]} 26. Kd4 {[%emt 0:
00:00]} Bc6 {[%emt 0:00:00]} 27. Rg1 {[%emt 0:00:00]} Rh8 {[%emt 0:00:00]} 28.
Rg3 {[%emt 0:00:00]} Ra8 {[%emt 0:00:00]} 29. Rb3 {[%emt 0:00:00]} Rb8 {
[%emt 0:00:00]} 30. Bd1 {[%emt 0:00:00]} Kd7 {[%emt 0:00:00]} 31. a4 {[%emt 0:
00:00]} b4 {[%emt 0:00:00]} 32. Rg3 {[%emt 0:00:00]} Rh8 {[%emt 0:00:00]} 33.
b3 {[%emt 0:00:00]} Rh7 {[%emt 0:00:00]} 34. Be2 {[%emt 0:00:00]} Rh8 {[%emt 0:
00:00]} 35. Rg1 {[%emt 0:00:00]} Kc7 {[%emt 0:00:00]} 36. Ra1 {[%emt 0:00:00]}
Kd7 {[%emt 0:00:00]} 1/2-1/2

[Event "Gibraltar Masters 18th"]
[Site "Gibraltar"]
[Date "2020.01.24"]
[Round "4.38"]
[White "Kotronias, Vasilios"]
[Black "Pigott, John C"]
[Result "1-0"]
[ECO "B09"]
[WhiteElo "2526"]
[BlackElo "2370"]
[PlyCount "87"]
[EventDate "2020.01.21"]
[EventType "swiss"]
[EventRounds "10"]
[EventCountry "GGB"]
[SourceTitle "BritBase"]
[Source "John Saunders"]
[SourceDate "2021.06.05"]
[SourceVersion "1"]
[SourceVersionDate "2021.06.05"]
[SourceQuality "1"]
[TimeControl "40/100:0"]
[WhiteClock "0:55:00"]
[BlackClock "0:44:35"]

1. e4 {[%emt 0:00:00]} d6 {[%emt 0:00:00]} 2. d4 {[%emt 0:00:00]} Nf6 {[%emt 0:
00:00]} 3. Nc3 {[%emt 0:00:00]} g6 {[%emt 0:00:00]} 4. f4 {[%emt 0:00:00]} Bg7
{[%emt 0:00:00]} 5. Nf3 {[%emt 0:00:00]} O-O {[%emt 0:00:00]} 6. Bd3 {[%emt 0:
00:00]} Nc6 {[%emt 0:00:00]} 7. e5 {[%emt 0:00:00]} dxe5 {[%emt 0:00:00]} 8.
fxe5 {[%emt 0:00:00]} Nh5 {[%emt 0:00:00]} 9. Be3 {[%emt 0:00:00]} Bg4 {
[%emt 0:00:00]} 10. Be2 {[%emt 0:00:00]} f6 {[%emt 0:00:00]} 11. d5 {[%emt 0:
00:00]} Nxe5 {[%emt 0:00:00]} 12. Nxe5 {[%emt 0:00:00]} Bxe2 {[%emt 0:00:00]}
13. Qxe2 {[%emt 0:00:00]} fxe5 {[%emt 0:00:00]} 14. O-O-O {[%emt 0:00:00]} Nf6
{[%emt 0:00:00]} 15. g4 {[%emt 0:00:00]} Qd7 {[%emt 0:00:00]} 16. g5 {[%emt 0:
00:00]} Nh5 {[%emt 0:00:00]} 17. Qc4 {[%emt 0:00:00]} Kh8 {[%emt 0:00:00]} 18.
Qb5 {[%emt 0:00:00]} Qc8 {[%emt 0:00:00]} 19. Ne4 {[%emt 0:00:00]} b6 {[%emt 0:
00:00]} 20. Bd2 {[%emt 0:00:00]} Nf4 {[%emt 0:00:00]} 21. h4 {[%emt 0:00:00]}
Qe8 {[%emt 0:00:00]} 22. Qxe8 {[%emt 0:00:00]} Rfxe8 {[%emt 0:00:00]} 23. c4 {
[%emt 0:00:00]} Rad8 {[%emt 0:00:00]} 24. Be3 {[%emt 0:00:00]} Kg8 {[%emt 0:00:
00]} 25. Rh2 {[%emt 0:00:00]} Rd7 {[%emt 0:00:00]} 26. Kc2 {[%emt 0:00:00]}
Red8 {[%emt 0:00:00]} 27. Rhd2 {[%emt 0:00:00]} Kf7 {[%emt 0:00:00]} 28. a4 {
[%emt 0:00:00]} a5 {[%emt 0:00:00]} 29. Rf1 {[%emt 0:00:00]} Kg8 {[%emt 0:00:
00]} 30. Rfd1 {[%emt 0:00:00]} Kf7 {[%emt 0:00:00]} 31. b4 {[%emt 0:00:00]}
axb4 {[%emt 0:00:00]} 32. Kb3 {[%emt 0:00:00]} Bf8 {[%emt 0:00:00]} 33. a5 {
[%emt 0:00:00]} Ra8 {[%emt 0:00:00]} 34. axb6 {[%emt 0:00:00]} Ra3+ {[%emt 0:
00:00]} 35. Kxb4 {[%emt 0:00:00]} Rxe3 {[%emt 0:00:00]} 36. Nc5 {[%emt 0:00:00]
} Rd8 {[%emt 0:00:00]} 37. b7 {[%emt 0:00:00]} Rb8 {[%emt 0:00:00]} 38. Kb5 {
[%emt 0:00:00]} e6 {[%emt 0:00:00]} 39. dxe6+ {[%emt 0:00:00]} Nxe6 {[%emt 0:
00:00]} 40. Rf1+ {[%emt 0:00:00]} Nf4 {[%emt 0:00:00]} 41. Rd7+ {[%emt 0:00:00]
} Kg8 {[%emt 0:02:24]} 42. Rxc7 {[%emt 0:00:00]} Bd6 {[%emt 0:00:00]} 43. Rc8+
{[%emt 0:00:00]} Kg7 {[%emt 0:00:00]} 44. Kc6 {[%emt 0:00:00]} 1-0

[Event "Gibraltar Masters 18th"]
[Site "Gibraltar"]
[Date "2020.01.24"]
[Round "4.39"]
[White "Hjartarson, Johann"]
[Black "Beinoras, Mindaugas"]
[Result "1-0"]
[ECO "A20"]
[WhiteElo "2524"]
[BlackElo "2355"]
[PlyCount "127"]
[EventDate "2020.01.21"]
[EventType "swiss"]
[EventRounds "10"]
[EventCountry "GGB"]
[SourceTitle "BritBase"]
[Source "John Saunders"]
[SourceDate "2021.06.05"]
[SourceVersion "1"]
[SourceVersionDate "2021.06.05"]
[SourceQuality "1"]
[TimeControl "40/100:0"]
[WhiteClock "0:09:54"]
[BlackClock "0:04:23"]

1. c4 {[%emt 0:00:00]} e5 {[%emt 0:00:00]} 2. g3 {[%emt 0:00:00]} Nf6 {[%emt 0:
00:00]} 3. Bg2 {[%emt 0:00:00]} d5 {[%emt 0:00:00]} 4. cxd5 {[%emt 0:00:00]}
Nxd5 {[%emt 0:00:00]} 5. Nf3 {[%emt 0:00:00]} Nc6 {[%emt 0:00:00]} 6. O-O {
[%emt 0:00:00]} Nb6 {[%emt 0:00:00]} 7. b3 {[%emt 0:00:00]} Bd6 {[%emt 0:00:00]
} 8. Bb2 {[%emt 0:00:00]} O-O {[%emt 0:00:00]} 9. d3 {[%emt 0:00:00]} Re8 {
[%emt 0:00:00]} 10. Nbd2 {[%emt 0:00:00]} Bg4 {[%emt 0:00:00]} 11. h3 {[%emt 0:
00:00]} Bh5 {[%emt 0:00:00]} 12. Rc1 {[%emt 0:00:00]} f5 {[%emt 0:00:00]} 13.
Nc4 {[%emt 0:00:00]} Nxc4 {[%emt 0:00:00]} 14. bxc4 {[%emt 0:00:00]} Bc5 {
[%emt 0:00:00]} 15. Qb3 {[%emt 0:00:00]} Rb8 {[%emt 0:00:00]} 16. e3 {[%emt 0:
00:00]} Kh8 {[%emt 0:00:00]} 17. Rfd1 {[%emt 0:00:00]} Qe7 {[%emt 0:00:00]} 18.
d4 {[%emt 0:00:00]} Bb6 {[%emt 0:00:00]} 19. d5 {[%emt 0:00:00]} Bxf3 {[%emt 0:
00:00]} 20. Bxf3 {[%emt 0:00:00]} Nd8 {[%emt 0:00:00]} 21. Qc2 {[%emt 0:00:00]}
Bc5 {[%emt 0:00:00]} 22. Qxf5 {[%emt 0:00:00]} Rf8 {[%emt 0:00:00]} 23. Qh5 {
[%emt 0:00:00]} Nf7 {[%emt 0:00:00]} 24. Bg2 {[%emt 0:00:00]} Rbe8 {[%emt 0:00:
00]} 25. Rc2 {[%emt 0:00:00]} Nd6 {[%emt 0:00:00]} 26. Rf1 {[%emt 0:00:00]} b6
{[%emt 0:00:00]} 27. Kh2 {[%emt 0:00:00]} e4 {[%emt 0:00:00]} 28. h4 {[%emt 0:
00:00]} Rf5 {[%emt 0:00:00]} 29. Qg4 {[%emt 0:00:00]} Ref8 {[%emt 0:00:00]} 30.
Kg1 {[%emt 0:00:00]} Qf7 {[%emt 0:00:15]} 31. Qe2 {[%emt 0:00:00]} h5 {[%emt 0:
00:08]} 32. Bd4 {[%emt 0:00:00]} Qg6 {[%emt 0:00:19]} 33. Qd2 {[%emt 0:00:00]}
Bxd4 {[%emt 0:00:20]} 34. Qxd4 {[%emt 0:00:00]} Re8 {[%emt 0:00:00]} 35. c5 {
[%emt 0:00:00]} bxc5 {[%emt 0:00:00]} 36. Qxc5 {[%emt 0:00:00]} Re7 {[%emt 0:
00:00]} 37. Qxa7 {[%emt 0:00:00]} Qf7 {[%emt 0:00:00]} 38. Rd1 {[%emt 0:00:00]}
Kh7 {[%emt 0:00:00]} 39. Qc5 {[%emt 0:00:00]} Qe8 {[%emt 0:00:00]} 40. Qa5 {
[%emt 0:00:00]} Qb8 {[%emt 0:00:00]} 41. Rdc1 {[%emt 0:00:00]} Ne8 {[%emt 0:00:
00]} 42. Qd2 {[%emt 0:00:00]} Nf6 {[%emt 0:00:00]} 43. Rc5 {[%emt 0:00:00]} Qd8
{[%emt 0:00:00]} 44. R1c4 {[%emt 0:00:00]} Kh8 {[%emt 0:00:00]} 45. Qa5 {
[%emt 0:00:00]} Qd6 {[%emt 0:00:00]} 46. Qa8+ {[%emt 0:00:00]} Re8 {[%emt 0:00:
00]} 47. Qc6 {[%emt 0:00:00]} Qf8 {[%emt 0:00:00]} 48. Rc2 {[%emt 0:00:00]} Rb8
{[%emt 0:00:00]} 49. Qxc7 {[%emt 0:00:00]} Rb1+ {[%emt 0:00:00]} 50. Rc1 {
[%emt 0:00:00]} Rb2 {[%emt 0:00:00]} 51. Qc8 {[%emt 0:00:00]} Ne8 {[%emt 0:00:
00]} 52. R5c2 {[%emt 0:00:00]} Rxf2 {[%emt 0:00:00]} 53. Rxb2 {[%emt 0:00:00]}
Rxb2 {[%emt 0:00:00]} 54. Rf1 {[%emt 0:00:00]} Qg8 {[%emt 0:00:00]} 55. Bxe4 {
[%emt 0:00:00]} Nf6 {[%emt 0:00:00]} 56. Qxg8+ {[%emt 0:00:00]} Kxg8 {[%emt 0:
00:00]} 57. Bg6 {[%emt 0:00:00]} Rxa2 {[%emt 0:00:00]} 58. Rc1 {[%emt 0:00:00]}
Kf8 {[%emt 0:00:00]} 59. d6 {[%emt 0:00:00]} Ra8 {[%emt 0:00:00]} 60. e4 {
[%emt 0:00:00]} Nd7 {[%emt 0:00:00]} 61. Bxh5 {[%emt 0:00:00]} Rd8 {[%emt 0:00:
00]} 62. Rf1+ {[%emt 0:00:00]} Kg8 {[%emt 0:00:00]} 63. Bf7+ {[%emt 0:00:00]}
Kh7 {[%emt 0:00:00]} 64. Rf5 {[%emt 0:00:00]} 1-0

[Event "Gibraltar Masters 18th"]
[Site "Gibraltar"]
[Date "2020.01.24"]
[Round "4.40"]
[White "Mendonca, Leon Luke"]
[Black "Sadhwani, Raunak"]
[Result "1/2-1/2"]
[ECO "A85"]
[WhiteElo "2417"]
[BlackElo "2522"]
[PlyCount "85"]
[EventDate "2020.01.21"]
[EventType "swiss"]
[EventRounds "10"]
[EventCountry "GGB"]
[SourceTitle "BritBase"]
[Source "John Saunders"]
[SourceDate "2021.06.05"]
[SourceVersion "1"]
[SourceVersionDate "2021.06.05"]
[SourceQuality "1"]
[TimeControl "40/100:0"]
[WhiteClock "0:48:37"]
[BlackClock "1:08:46"]

1. d4 {[%emt 0:00:00]} f5 {[%emt 0:00:00]} 2. c4 {[%emt 0:00:00]} Nf6 {[%emt 0:
00:00]} 3. Nc3 {[%emt 0:00:00]} g6 {[%emt 0:00:00]} 4. h4 {[%emt 0:00:00]} d6 {
[%emt 0:00:00]} 5. h5 {[%emt 0:00:00]} Nxh5 {[%emt 0:00:00]} 6. Rxh5 {[%emt 0:
00:00]} gxh5 {[%emt 0:00:00]} 7. e4 {[%emt 0:00:00]} Bg7 {[%emt 0:00:00]} 8.
Qxh5+ {[%emt 0:00:00]} Kd7 {[%emt 0:00:00]} 9. Nf3 {[%emt 0:00:00]} Qe8 {
[%emt 0:00:00]} 10. Qxf5+ {[%emt 0:00:00]} Kd8 {[%emt 0:00:00]} 11. Qf4 {
[%emt 0:00:00]} Rf8 {[%emt 0:00:00]} 12. Qh4 {[%emt 0:00:00]} Nc6 {[%emt 0:00:
00]} 13. Be3 {[%emt 0:00:00]} Qg6 {[%emt 0:00:00]} 14. O-O-O {[%emt 0:00:00]}
Bf6 {[%emt 0:00:00]} 15. Qh2 {[%emt 0:00:00]} Bg4 {[%emt 0:00:00]} 16. e5 {
[%emt 0:00:00]} Bg7 {[%emt 0:00:00]} 17. Bd3 {[%emt 0:00:00]} Qh5 {[%emt 0:00:
00]} 18. Qg3 {[%emt 0:00:00]} Bh6 {[%emt 0:00:00]} 19. Be4 {[%emt 0:00:00]} Bf5
{[%emt 0:00:00]} 20. Bxh6 {[%emt 0:00:00]} Qxh6+ {[%emt 0:00:00]} 21. Ng5 {
[%emt 0:00:00]} Qg6 {[%emt 0:00:00]} 22. Qe3 {[%emt 0:00:00]} h6 {[%emt 0:00:
00]} 23. Bxf5 {[%emt 0:00:00]} Qxf5 {[%emt 0:00:00]} 24. Nf3 {[%emt 0:00:00]}
Qf4 {[%emt 0:00:00]} 25. e6 {[%emt 0:00:00]} Kc8 {[%emt 0:00:00]} 26. d5 {
[%emt 0:00:00]} Ne5 {[%emt 0:00:00]} 27. Nxe5 {[%emt 0:00:00]} dxe5 {[%emt 0:
00:00]} 28. Ne4 {[%emt 0:00:00]} Qxe3+ {[%emt 0:00:00]} 29. fxe3 {[%emt 0:00:
00]} b6 {[%emt 0:00:00]} 30. Kd2 {[%emt 0:00:00]} Kb7 {[%emt 0:00:00]} 31. Rh1
{[%emt 0:00:00]} Rg8 {[%emt 0:00:00]} 32. g3 {[%emt 0:00:00]} Rg6 {[%emt 0:00:
00]} 33. Rf1 {[%emt 0:00:00]} Rd8 {[%emt 0:00:00]} 34. Ke2 {[%emt 0:00:00]} Rg4
{[%emt 0:00:00]} 35. Kd3 {[%emt 0:00:00]} c6 {[%emt 0:00:00]} 36. Rf7 {[%emt 0:
00:00]} cxd5 {[%emt 0:00:00]} 37. Rxe7+ {[%emt 0:00:00]} Kc6 {[%emt 0:00:00]}
38. Nf6 {[%emt 0:00:00]} dxc4+ {[%emt 0:00:00]} 39. Ke2 {[%emt 0:00:00]} Rxg3 {
[%emt 0:00:00]} 40. Rxa7 {[%emt 0:00:00]} Rg2+ {[%emt 0:00:00]} 41. Ke1 {
[%emt 0:00:00]} Rg1+ {[%emt 0:00:00]} 42. Ke2 {[%emt 0:00:00]} Rg2+ {[%emt 0:
00:00]} 43. Ke1 {[%emt 0:00:00]} 1/2-1/2